fUST/lending_fUST_20241217
["ID","MTS","AMOUNT","RATE_DAILY","PERIOD"]
[345686543,1734424262805,-500.0,0.00026027,6]
[345686546,1734424262815,-500.0,0.00026027,6]
[345686548,1734424262824,-627.92,0.00026027,6]
[345686550,1734424262834,-500.0,0.00026027,6]
[345686552,1734424262843,-504.92619992,0.00026027,6]
[345686554,1734424262852,-910.29,0.00026027,6]
[345686556,1734424262861,-500.0,0.00026027,6]
[345686558,1734424262870,-774.98,0.00026027,6]
[345686560,1734424262879,-500.86859511,0.00026027,6]
[345686562,1734424262889,-500.0,0.00026027,6]
[345686564,1734424262898,-500.0,0.00026027,6]
[345686565,1734424262908,-1553.26,0.00026027,6]
[345686568,1734424262918,-500.0,0.00026027,6]
[345686570,1734424262927,-509.85647799,0.00026027,6]
[345686572,1734424262937,-500.0,0.00026027,6]
[345686574,1734424262946,-500.0,0.00026027,6]
[345686576,1734424262955,-500.0,0.00026027,6]
[345686578,1734424262964,-604.52,0.00026027,6]
[345686580,1734424262974,-987.23,0.00026027,6]
[345686582,1734424262983,-780.46,0.00026027,6]
[345686583,1734424262993,-718.59,0.00026027,6]
[345686585,1734424263002,-500.0,0.00026027,6]
[345686588,1734424263011,-500.0,0.00026027,6]
[345686590,1734424263020,-500.0,0.00026027,6]
[345686592,1734424263030,-500.0,0.00026027,6]
[345686594,1734424263040,-500.0,0.00026027,6]
[345686596,1734424263049,-500.0,0.00026027,6]
[345686597,1734424263059,-500.0,0.00026027,6]
[345686600,1734424263068,-500.0,0.00026027,6]
[345686602,1734424263078,-1293.26,0.00026027,6]
[345686604,1734424263088,-585.22188232,0.00026027,6]
[345686605,1734424263097,-500.0,0.00026027,6]
[345686607,1734424263107,-1910.85,0.00026027,6]
[345686609,1734424263116,-500.0,0.00026027,6]
[345686611,1734424263125,-500.0,0.00026027,6]
[345686613,1734424263135,-2573.33,0.00026027,6]
[345686615,1734424263144,-500.0,0.00026027,6]
[345686617,1734424263154,-500.0,0.00026027,6]
[345686619,1734424263165,-591.97,0.00026027,6]
[345686621,1734424263176,-500.0,0.00026027,6]
[345686623,1734424263186,-2286.48,0.00026027,6]
[345686625,1734424263196,-500.0,0.00026027,6]
[345686627,1734424263206,-500.0,0.00026027,6]
[345686629,1734424263216,-500.0,0.00026027,6]
[345686631,1734424263226,-500.0,0.00026027,6]
[345686640,1734424263359,-500.0,0.00026027,6]
[345686641,1734424263369,-526.69,0.00026027,6]
[345686642,1734424263379,-903.29,0.00026027,6]
[345686643,1734424263389,-500.0,0.00026027,6]
[345686644,1734424263400,-500.0,0.00026027,6]
[345686645,1734424263412,-1649.3,0.00026027,2]
[345686647,1734424263422,-500.0,0.00026027,6]
[345686649,1734424263431,-500.0,0.00026027,6]
[345686651,1734424263441,-500.0,0.00026027,6]
[345686653,1734424263451,-712.81,0.00026027,6]
[345686655,1734424263461,-500.0,0.00026027,6]
[345686657,1734424263471,-500.0,0.00026027,6]
[345686659,1734424263481,-500.0,0.00026027,6]
[345686661,1734424263491,-286.43,0.00026027,6]
[345686663,1734424263500,-500.0,0.00026027,6]
[345686665,1734424263510,-500.0,0.00026027,6]
[345686667,1734424263520,-469.0650107,0.00026027,6]
[345686669,1734424263530,-521.49,0.00026027,6]
[345686671,1734424263541,-677.86,0.00026027,6]
[345686673,1734424263550,-1715.94,0.00026027,6]
[345686675,1734424263560,-545.7,0.00026027,6]
[345686677,1734424263569,-500.0,0.00026027,6]
[345686679,1734424263579,-500.0,0.00026027,6]
[345686681,1734424263589,-500.0,0.00026027,6]
[345686683,1734424263599,-517.11,0.00026027,6]
[345686685,1734424263609,-3107.62,0.00026027,6]
[345686687,1734424263619,-500.0,0.00026027,6]
[345686689,1734424263629,-500.0,0.00026027,6]
[345686691,1734424263638,-500.0,0.00026027,6]
[345686693,1734424263648,-500.0,0.00026027,6]
[345686695,1734424263659,-500.0,0.00026027,6]
[345686697,1734424263669,-500.0,0.00026027,6]
[345686699,1734424263679,-504.73239827,0.00026027,6]
[345686701,1734424263689,-1887.89,0.00026027,6]
[345686703,1734424263699,-930.43,0.00026027,6]
[345686705,1734424263709,-507.86458213,0.00026027,6]
[345686707,1734424263718,-500.0,0.00026027,6]
[345686709,1734424263728,-1000.0,0.00026027,2]
[345686711,1734424263737,-500.0,0.00026027,6]
[345686713,1734424263747,-522.18463643,0.00026027,6]
[345686715,1734424263757,-500.0,0.00026027,6]
[345686717,1734424263767,-2642.26,0.00026027,6]
[345686719,1734424263777,-870.14,0.00026027,6]
[345686721,1734424263787,-1026.18,0.00026027,6]
[345686722,1734424263796,-648.52,0.00026027,6]
[345686724,1734424263806,-649.44,0.00026027,2]
[345686726,1734424263816,-500.0,0.00026027,6]
[345686729,1734424263835,-500.0,0.00026027,6]
[345686730,1734424263844,-500.0,0.00026027,6]
[345686732,1734424263854,-500.0,0.00026027,6]
[345686734,1734424263864,-500.0,0.00026027,6]
[345686736,1734424263874,-6832.57,0.00026027,6]
[345686738,1734424263884,-2768.81,0.00026027,6]
[345686740,1734424263894,-585.93882716,0.00026027,6]
[345686742,1734424263905,-574.51762302,0.00026027,6]
[345686744,1734424263919,-1817.43,0.00026027,6]
[345686746,1734424263929,-500.0,0.00026027,6]
[345686748,1734424263939,-500.0,0.00026027,6]
[345686751,1734424263950,-7526.42,0.00026027,6]
[345686753,1734424263961,-535.80175161,0.00026027,6]
[345686754,1734424263971,-500.0,0.00026027,6]
[345686756,1734424263981,-794.02,0.00026027,6]
[345686758,1734424263992,-6481.57,0.00026027,6]
[345686760,1734424264002,-10373.72,0.00026027,6]
[345686762,1734424264013,-1239.75,0.00026027,6]
[345686764,1734424264022,-500.0,0.00026027,6]
[345686766,1734424264032,-1765.9,0.00026027,6]
[345686768,1734424264042,-1201.5,0.00026027,6]
[345686770,1734424264052,-3000.0,0.00026027,30]
[345686773,1734424264062,-783.27,0.00026027,6]
[345686775,1734424264073,-1019.66,0.00026027,6]
[345686776,1734424264083,-534.42,0.00026027,6]
[345686778,1734424264093,-1653.2,0.00026027,6]
[345686780,1734424264103,-1412.43,0.00026027,6]
[345686782,1734424264113,-500.0,0.00026027,6]
[345686784,1734424264124,-500.0,0.00026027,6]
[345686786,1734424264133,-1778.41,0.00026027,5]
[345686788,1734424264143,-500.0,0.00026027,6]
[345686790,1734424264152,-643.14791723,0.00026027,6]
[345686792,1734424264164,-500.0,0.00026027,6]
[345686794,1734424264180,-3387.78,0.00026027,6]
[345686796,1734424264189,-1002.59,0.00026027,6]
[345686798,1734424264200,-1704.13,0.00026027,6]
[345686800,1734424264211,-500.0,0.00026027,6]
[345686802,1734424264221,-500.0,0.00026027,6]
[345686804,1734424264231,-500.0,0.00026027,6]
[345686806,1734424264241,-500.0,0.00026027,6]
[345686808,1734424264252,-33732.24,0.00026027,6]
[345686810,1734424264266,-3709.48,0.00026027,6]
[345686812,1734424264276,-500.0,0.00026027,6]
[345686814,1734424264286,-500.0,0.00026027,6]
[345686816,1734424264296,-510.10606914,0.00026027,6]
[345686818,1734424264306,-520.06081688,0.00026027,6]
[345686820,1734424264315,-506.71311107,0.00026027,6]
[345686822,1734424264325,-1705.57,0.00026027,6]
[345686824,1734424264335,-500.0,0.00026027,6]
[345686826,1734424264345,-500.0,0.00026027,6]
[345686827,1734424264354,-1836.6,0.00026027,6]
[345686829,1734424264364,-704.62,0.00026027,6]
[345686831,1734424264374,-979.48,0.00026027,6]
[345686833,1734424264384,-500.0,0.00026027,6]
[345686836,1734424264395,-4330.72,0.00026027,6]
[345686838,1734424264405,-500.0,0.00026027,6]
[345686839,1734424264417,-610.85,0.00026027,6]
[345686841,1734424264428,-500.0,0.00026027,6]
[345686843,1734424264438,-500.0,0.00026027,6]
[345686846,1734424264448,-2529.02,0.00026027,6]
[345686847,1734424264457,-500.0,0.00026027,6]
[345686849,1734424264467,-1079.08,0.00026027,6]
[345686851,1734424264476,-500.0,0.00026027,6]
[345686853,1734424264486,-529.74522496,0.00026027,6]
[345686856,1734424264497,-2543.43,0.00026027,6]
[345686858,1734424264506,-511.76677893,0.00026027,6]
[345686860,1734424264516,-530.48,0.00026027,6]
[345686862,1734424264525,-4978.04,0.00026027,6]
[345686864,1734424264535,-500.0,0.00026027,6]
[345686865,1734424264544,-500.0,0.00026027,6]
[345686867,1734424264554,-500.0,0.00026027,6]
[345686870,1734424264564,-500.0,0.00026027,6]
[345686871,1734424264573,-500.0,0.00026027,6]
[345686873,1734424264583,-1782.0,0.00026027,6]
[345686875,1734424264592,-637.23,0.00026027,6]
[345686877,1734424264601,-500.0,0.00026027,6]
[345686880,1734424264611,-1595.65,0.00026027,6]
[345686881,1734424264621,-780.44,0.00026027,6]
[345686884,1734424264631,-1801.85,0.00026027,6]
[345686885,1734424264640,-1402.82,0.00026027,6]
[345686887,1734424264649,-500.0,0.00026027,6]
[345686889,1734424264659,-500.0,0.00026027,6]
[345686891,1734424264669,-542.8,0.00026027,6]
[345686894,1734424264679,-500.0,0.00026027,6]
[345686896,1734424264689,-515.4656153,0.00026027,6]
[345686898,1734424264698,-1166.17,0.00026027,6]
[345686900,1734424264708,-1240.63,0.00026027,6]
[345686902,1734424264717,-500.0,0.00026027,6]
[345686904,1734424264726,-1591.78,0.00026027,6]
[345686906,1734424264735,-500.0,0.00026027,6]
[345686908,1734424264745,-2184.89,0.00026027,6]
[345686910,1734424264754,-500.0,0.00026027,6]
[345686912,1734424264764,-500.0,0.00026027,6]
[345686914,1734424264773,-887.08,0.00026027,6]
[345686916,1734424264783,-500.0,0.00026027,6]
[345686918,1734424264792,-954.46,0.00026027,6]
[345686919,1734424264821,-500.0,0.00026027,6]
[345686921,1734424264830,-500.0,0.00026027,6]
[345686923,1734424264840,-1261.96,0.00026027,6]
[345686925,1734424264849,-991.36,0.00026027,6]
[345686928,1734424264859,-2550.14,0.00026027,6]
[345686930,1734424264869,-5000.0,0.00026044,7]
[345686931,1734424264878,-500.0,0.00026101,3]
[345686934,1734424264888,-500.0,0.00026101,3]
[345686935,1734424264897,-500.0,0.00026104,6]
[345686938,1734424264907,-186.3,0.00026122,6]
[345686940,1734424264918,-1500.0,0.00026222,2]
[345686942,1734424264928,-3790.95693877,0.00026293,2]
[345686944,1734424264937,-503.6530392,0.00026301,2]
[345686945,1734424264946,-642.52,0.00026301,6]
[345686948,1734424264956,-500.0,0.00026301,6]
[345686950,1734424264965,-500.0,0.00026301,6]
[345686951,1734424264975,-535.38,0.00026301,6]
[345686954,1734424264984,-500.0,0.00026301,6]
[345686956,1734424264994,-500.0,0.00026301,6]
[345686958,1734424265005,-500.0,0.00026301,6]
[345686960,1734424265014,-500.0,0.00026301,6]
[345686961,1734424265024,-500.0,0.00026301,6]
[345686963,1734424265033,-500.0,0.00026301,6]
[345686965,1734424265043,-500.0,0.00026301,6]
[345686967,1734424265053,-500.0,0.00026301,6]
[345686969,1734424265062,-879.48,0.00026301,6]
[345686972,1734424265072,-500.0,0.00026301,6]
[345686973,1734424265082,-500.0,0.00026301,6]
[345686976,1734424265092,-500.0,0.00026301,6]
[345686978,1734424265102,-500.0,0.00026301,6]
[345686980,1734424265112,-502.04795987,0.00026301,6]
[345686982,1734424265122,-245.39413648,0.00026301,6]
[345686984,1734424265133,-500.0,0.00026301,6]
[345686986,1734424265143,-500.0,0.00026301,6]
[345686988,1734424265153,-500.0,0.00026301,6]
[345686989,1734424265165,-500.0,0.00026301,6]
[345686992,1734424265175,-227.10520387,0.00026301,6]
[345686993,1734424265185,-500.0,0.00026301,6]
[345686995,1734424265195,-500.0,0.00026301,6]
[345686997,1734424265204,-500.0,0.00026301,6]
[345686999,1734424265214,-500.0,0.00026301,6]
[345687001,1734424265224,-1214.35,0.00026301,6]
[345687003,1734424265234,-500.0,0.00026301,6]
[345687005,1734424265244,-500.0,0.00026301,6]
[345687007,1734424265255,-500.0,0.00026301,6]
[345687009,1734424265270,-500.0,0.00026301,6]
[345687012,1734424265280,-794.02,0.00026301,6]
[345687013,1734424265290,-500.0,0.00026301,6]
[345687015,1734424265300,-500.0,0.00026301,6]
[345687018,1734424265310,-500.0,0.00026301,6]
[345687020,1734424265320,-711.23,0.00026301,6]
[345687021,1734424265330,-500.0,0.00026301,6]
[345687024,1734424265340,-844.97,0.00026301,6]
[345687026,1734424265350,-500.0,0.00026301,6]
[345687028,1734424265360,-500.0,0.00026301,6]
[345687030,1734424265370,-500.0,0.00026301,6]
[345687032,1734424265379,-788.73,0.00026301,6]
[345687034,1734424265390,-500.0,0.00026301,6]
[345687036,1734424265399,-503.57286025,0.00026301,6]
[345687038,1734424265411,-500.0,0.00026301,6]
[345687040,1734424265421,-500.0,0.00026301,6]
[345687042,1734424265430,-627.92,0.00026301,6]
[345687044,1734424265439,-500.0,0.00026301,6]
[345687046,1734424265449,-910.29,0.00026301,6]
[345687048,1734424265459,-500.0,0.00026301,6]
[345687050,1734424265468,-774.98,0.00026301,6]
[345687052,1734424265477,-500.0,0.00026301,6]
[345687053,1734424265487,-500.0,0.00026301,6]
[345687054,1734424265496,-1553.26,0.00026301,6]
[345687055,1734424265507,-500.0,0.00026301,6]
[345687056,1734424265517,-501.49367304,0.00026301,6]
[345687057,1734424265526,-527.46029249,0.00026301,6]
[345687058,1734424265535,-500.0,0.00026301,6]
[345687059,1734424265545,-604.52,0.00026301,6]
[345687060,1734424265555,-987.23,0.00026301,6]
[345687061,1734424265564,-780.46,0.00026301,6]
[345687062,1734424265574,-718.59,0.00026301,6]
[345687064,1734424265584,-552.35129853,0.00026301,6]
[345687065,1734424265594,-503.16825343,0.00026301,6]
[345687067,1734424265603,-500.0,0.00026301,6]
[345687069,1734424265613,-507.09313442,0.00026301,6]
[345687071,1734424265622,-500.0,0.00026301,6]
[345687073,1734424265631,-374.19878267,0.00026301,6]
[345687075,1734424265641,-500.0,0.00026301,6]
[345687077,1734424265652,-500.0,0.00026301,6]
[345687079,1734424265662,-1293.26,0.00026301,6]
[345687081,1734424265672,-500.0,0.00026301,6]
[345687083,1734424265682,-1910.85,0.00026301,6]
[345687085,1734424265691,-500.0,0.00026301,6]
[345687087,1734424265700,-500.0,0.00026301,6]
[345687089,1734424265709,-2573.33,0.00026301,6]
[345687091,1734424265718,-534.86292965,0.00026301,6]
[345687093,1734424265727,-500.0,0.00026301,6]
[345687095,1734424265737,-591.97,0.00026301,6]
[345687097,1734424265747,-500.0,0.00026301,6]
[345687099,1734424265756,-2286.48,0.00026301,6]
[345687101,1734424265766,-500.0,0.00026301,6]
[345687103,1734424265775,-500.0,0.00026301,6]
[345687118,1734424265785,-500.0,0.00026301,6]
[345687120,1734424265914,-500.0,0.00026301,6]
[345687122,1734424265923,-500.0,0.00026301,6]
[345687124,1734424265932,-526.69,0.00026301,6]
[345687126,1734424265941,-903.29,0.00026301,6]
[345687128,1734424265950,-500.0,0.00026301,6]
[345687130,1734424265960,-500.0,0.00026301,6]
[345687132,1734424265969,-1649.3,0.00026301,2]
[345687134,1734424265979,-500.0,0.00026301,6]
[345687136,1734424265988,-500.0,0.00026301,6]
[345687138,1734424265998,-508.67313875,0.00026301,6]
[345687140,1734424266008,-712.81,0.00026301,6]
[345687142,1734424266017,-500.0,0.00026301,6]
[345687144,1734424266026,-500.0,0.00026301,6]
[345687146,1734424266036,-500.0,0.00026301,6]
[345687148,1734424266046,-286.43,0.00026301,6]
[345687150,1734424266056,-500.0,0.00026301,6]
[345687152,1734424266065,-156.84877219,0.00026301,6]
[345687154,1734424266074,-521.49,0.00026301,6]
[345687156,1734424266083,-677.86,0.00026301,6]
[345687158,1734424266094,-1715.94,0.00026301,6]
[345687160,1734424266103,-545.7,0.00026301,6]
[345687162,1734424266113,-500.0,0.00026301,6]
[345687164,1734424266122,-500.0,0.00026301,6]
[345687165,1734424266131,-622.74827722,0.00026301,6]
[345687168,1734424266142,-517.11,0.00026301,6]
[345687170,1734424266151,-3107.62,0.00026301,6]
[345687171,1734424266163,-500.0,0.00026301,6]
[345687174,1734424266173,-500.0,0.00026301,6]
[345687176,1734424266182,-500.0,0.00026301,6]
[345687178,1734424266193,-500.0,0.00026301,6]
[345687180,1734424266203,-500.0,0.00026301,6]
[345687182,1734424266213,-500.0,0.00026301,6]
[345687184,1734424266222,-1887.89,0.00026301,6]
[345687186,1734424266232,-930.43,0.00026301,6]
[345687188,1734424266242,-500.0,0.00026301,6]
[345687190,1734424266251,-1000.0,0.00026301,2]
[345687192,1734424266264,-581.9632055,0.00026301,6]
[345687194,1734424266273,-500.0,0.00026301,6]
[345687196,1734424266282,-2642.26,0.00026301,6]
[345687198,1734424266292,-870.14,0.00026301,6]
[345687200,1734424266302,-1026.18,0.00026301,6]
[345687202,1734424266311,-648.52,0.00026301,6]
[345687204,1734424266321,-649.44,0.00026301,2]
[345687206,1734424266330,-500.0,0.00026301,6]
[345687208,1734424266340,-504.78221334,0.00026301,6]
[345687210,1734424266350,-500.0,0.00026301,6]
[345687212,1734424266359,-500.0,0.00026301,6]
[345687213,1734424266369,-500.0,0.00026301,6]
[345687216,1734424266379,-3259.29848115,0.00026301,6]
[345687246,1734424266666,-555.25,0.00024657,6]
[345687248,1734424266675,-507.24110165,0.00024657,6]
[345687249,1734424266685,-553.253454,0.00024657,7]
[345687251,1734424266694,-151.0,0.00024657,7]
[345687254,1734424266705,-553.253454,0.000248,7]
[345687256,1734424266714,-555.25,0.00024931,6]
[345687257,1734424266723,-152.677159,0.00024931,7]
[345687260,1734424266733,-152.677159,0.00024931,7]
[345687262,1734424266743,-501.0204944,0.00024973,2]
[345687264,1734424266753,-553.253454,0.00025205,7]
[345687265,1734424266762,-553.253454,0.00025205,7]
[345687267,1734424266772,-555.25,0.00025205,6]
[345687269,1734424266782,-553.253454,0.00025205,7]
[345687271,1734424266792,-555.25,0.00025479,6]
[345687273,1734424266801,-555.25,0.00025753,6]
[345687275,1734424266811,-555.25,0.00026027,6]
[345687277,1734424266821,-3573.27151885,0.00026301,6]
[345687279,1734424266831,-2768.81,0.00026301,6]
[345687281,1734424266841,-1817.43,0.00026301,6]
[345687283,1734424266851,-500.0,0.00026301,6]
[345687285,1734424266861,-500.0,0.00026301,6]
[345687287,1734424266871,-7526.42,0.00026301,6]
[345687289,1734424266881,-500.0,0.00026301,6]
[345687291,1734424266891,-794.02,0.00026301,6]
[345687294,1734424266900,-6481.57,0.00026301,6]
[345687296,1734424266910,-10373.72,0.00026301,6]
[345687297,1734424266921,-1239.75,0.00026301,6]
[345687300,1734424266932,-1765.9,0.00026301,6]
[345687301,1734424266941,-1201.5,0.00026301,6]
[345687304,1734424266950,-500.0,0.00026301,6]
[345687305,1734424266959,-783.27,0.00026301,6]
[345687308,1734424266969,-3000.0,0.00026301,30]
[345687310,1734424266978,-1019.66,0.00026301,6]
[345687312,1734424266988,-534.42,0.00026301,6]
[345687314,1734424266998,-1653.2,0.00026301,6]
[345687316,1734424267007,-1412.43,0.00026301,6]
[345687318,1734424267016,-511.47356466,0.00026301,6]
[345687320,1734424267025,-500.0,0.00026301,6]
[345687321,1734424267034,-1778.41,0.00026301,5]
[345687324,1734424267044,-500.0,0.00026301,6]
[345687326,1734424267054,-500.0,0.00026301,6]
[345687328,1734424267063,-3387.78,0.00026301,6]
[345687330,1734424267073,-1002.59,0.00026301,6]
[345687332,1734424267082,-1704.13,0.00026301,6]
[345687334,1734424267091,-500.0,0.00026301,6]
[345687336,1734424267101,-507.48052237,0.00026301,6]
[345687338,1734424267110,-199.98445748,0.00026301,6]
[345687340,1734424267119,-500.0,0.00026301,6]
[345687342,1734424267129,-33732.24,0.00026301,6]
[345687344,1734424267138,-3709.48,0.00026301,6]
[345687346,1734424267147,-500.0,0.00026301,6]
[345687347,1734424267156,-500.0,0.00026301,6]
[345687349,1734424267168,-1705.57,0.00026301,6]
[345687351,1734424267179,-500.0,0.00026301,6]
[345687353,1734424267188,-500.0,0.00026301,6]
[345687355,1734424267198,-1836.6,0.00026301,6]
[345687357,1734424267207,-704.62,0.00026301,6]
[345687359,1734424267217,-979.48,0.00026301,6]
[345687361,1734424267226,-511.61047484,0.00026301,6]
[345687364,1734424267235,-4330.72,0.00026301,6]
[345687365,1734424267245,-500.0,0.00026301,6]
[345687368,1734424267258,-610.85,0.00026301,6]
[345687370,1734424267269,-500.0,0.00026301,6]
[345687372,1734424267279,-500.0,0.00026301,6]
[345687374,1734424267289,-2529.02,0.00026301,6]
[345687376,1734424267299,-1079.08,0.00026301,6]
[345687378,1734424267308,-500.0,0.00026301,6]
[345687380,1734424267318,-500.0,0.00026301,6]
[345687382,1734424267327,-2543.43,0.00026301,6]
[345687384,1734424267338,-530.48,0.00026301,6]
[345687386,1734424267347,-4978.04,0.00026301,6]
[345687388,1734424267356,-500.0,0.00026301,6]
[345687389,1734424267365,-514.24440258,0.00026301,6]
[345687391,1734424267375,-500.0,0.00026301,6]
[345687393,1734424267384,-500.0,0.00026301,6]
[345687395,1734424267393,-500.0,0.00026301,6]
[345687396,1734424267402,-1782.0,0.00026301,6]
[345687397,1734424267412,-637.23,0.00026301,6]
[345687398,1734424267424,-500.0,0.00026301,6]
[345687399,1734424267434,-1595.65,0.00026301,6]
[345687400,1734424267443,-780.44,0.00026301,6]
[345687401,1734424267453,-1801.85,0.00026301,6]
[345687402,1734424267463,-1402.82,0.00026301,6]
[345687403,1734424267473,-500.0,0.00026301,6]
[345687404,1734424267482,-500.0,0.00026301,6]
[345687405,1734424267492,-542.8,0.00026301,6]
[345687407,1734424267502,-500.0,0.00026301,6]
[345687409,1734424267512,-1166.17,0.00026301,6]
[345687411,1734424267521,-1240.63,0.00026301,6]
[345687413,1734424267531,-500.0,0.00026301,6]
[345687416,1734424267540,-1591.78,0.00026301,6]
[345687417,1734424267550,-500.0,0.00026301,6]
[345687420,1734424267560,-2184.89,0.00026301,6]
[345687422,1734424267569,-508.05407691,0.00026301,6]
[345687424,1734424267579,-500.0,0.00026301,6]
[345687425,1734424267588,-887.08,0.00026301,6]
[345687427,1734424267597,-500.0,0.00026301,6]
[345687430,1734424267606,-954.46,0.00026301,6]
[345687431,1734424267616,-500.0,0.00026301,6]
[345687433,1734424267624,-482.8133335,0.00026301,6]
[345687435,1734424267634,-1261.96,0.00026301,6]
[345687437,1734424267643,-991.36,0.00026301,6]
[345687439,1734424267653,-2550.14,0.00026301,6]
[345687441,1734424267663,-186.3,0.00026316,6]
[345687444,1734424267681,-906.2524101,0.00026375,3]
[345687445,1734424267691,-500.0,0.00026375,3]
[345687447,1734424267701,-158.85256666,0.00026375,3]
[345687449,1734424267711,-150.67309038,0.00026375,3]
[345687451,1734424267720,-500.0,0.00026378,6]
[345687453,1734424267730,-660.0,0.00026384,2]
[345687455,1734424267740,-3700.22889787,0.000264,3]
[345687458,1734424267749,-2027.23115045,0.000264,3]
[345687460,1734424267759,-157.7823902,0.000264,2]
[345687461,1734424267768,-420.0,0.00026462,2]
[345687463,1734424267777,-26050.476794,0.00026497,2]
[345687466,1734424267787,-259614.24558009,0.00026499,7]
[345687469,1734424267808,-152.677159,0.00025,7]
[345687471,1734424267818,-1713.6212557,0.00026499,7]
[345687473,1734424267829,-1516.37556943,0.00026499,7]
[345687518,1734424268270,-500.0,0.00024657,6]
[345687520,1734424268279,-124.7826615,0.00024657,6]
[345688885,1734424282529,500.0,0.00025,120]
[345688962,1734424283294,500.0,0.00025,120]
[345689026,1734424284047,611.79,0.00025,120]
[345690181,1734424628027,166.313744,0.00013973,2]
[345690207,1734425269361,450.0,0.00024,120]
[345690208,1734425295586,450.0,0.000254,120]
[345690211,1734425347699,500.0,0.000254,120]
[345690216,1734425365007,450.0,0.000254,120]
[345690239,1734425432332,-275.443296,0.00022,2]
[345690248,1734425432510,-176.59,0.0002357,2]
[345690249,1734425432520,-180.134,0.00023579,4]
[345690251,1734425432529,-300.0,0.00023579,2]
[345690252,1734425432539,-300.0,0.00023579,2]
[345690254,1734425432548,-21169.3244823,0.0002358,2]
[345690256,1734425432558,-5185.390707,0.00023734,2]
[345690257,1734425432568,-654.8035009,0.00024457,2]
[345690258,1734425432577,-666.0,0.00024557,2]
[345690259,1734425432589,-4162.95805803,0.00024557,7]
[345690260,1734425432598,-12973.39950077,0.00024557,3]
[345690261,1734425432607,-2406.11275179,0.00024557,2]
[345690262,1734425432622,-2154.0,0.00024563,2]
[345690263,1734425432632,-533.0,0.00024563,2]
[345690264,1734425432641,-2368.0,0.00024563,2]
[345690265,1734425432651,-1247.46412268,0.00024655,2]
[345690266,1734425432662,-500.0,0.00024656,2]
[345690267,1734425432671,-376.41268112,0.00024656,2]
[345690268,1734425432680,-317.73406686,0.00024656,2]
[345690269,1734425432690,-500.0,0.00024656,2]
[345690270,1734425432699,-611.38959448,0.00024656,2]
[345690271,1734425432708,-500.0,0.00024656,2]
[345690272,1734425432717,-500.0,0.00024656,2]
[345690273,1734425432726,-500.0,0.00024656,2]
[345690274,1734425432735,-500.0,0.00024656,2]
[345690275,1734425432746,-500.0,0.00024656,2]
[345690276,1734425432755,-500.0,0.00024656,2]
[345690277,1734425432765,-500.0,0.00024656,2]
[345690278,1734425432775,-166.93207219,0.00024656,2]
[345690279,1734425432784,-500.0,0.00024656,2]
[345690280,1734425432794,-500.0,0.00024656,2]
[345690281,1734425432803,-500.0,0.00024656,2]
[345690282,1734425432812,-482.94917745,0.00024656,2]
[345690283,1734425432821,-500.0,0.00024656,2]
[345690284,1734425432831,-500.0,0.00024656,2]